bitfinex-derivatives/quotes_SOLF0:USTF0_20250831
["timestamp","ask_amount","ask_price","bid_price","bid_amount"]
[1756611028308,7.27,204.97,204.9,9.31742619]
[1756611028509,7.27,204.97,204.92,1.35742619]
[1756611028709,7.27,204.97,204.93,7.96]
[1756611029209,7.27,204.97,204.92,1.35742619]
[1756611029605,7.27,204.97,204.93,7.96]
[1756611029804,7.27,204.97,204.92,1.35742619]
[1756611030008,7.27,204.97,204.93,7.96]
[1756611030406,7.27,204.97,204.92,1.35742619]
[1756611030612,7.27,204.97,204.93,7.96]
[1756611031314,7.27,204.97,204.92,1.35742619]
[1756611032313,7.27,204.97,204.93,7.96]
[1756611032508,7.27,204.97,204.92,1.35742619]
[1756611032812,7.27,204.98,204.92,9.31742619]
[1756611033607,120.61742619,204.99,204.93,0.03236466]
[1756611034217,7.27,204.98,204.93,0.03236466]
[1756611034410,120.61742619,204.99,204.93,0.03236466]
[1756611034905,7.27,204.98,204.93,0.03236466]
[1756611035105,7.27,204.98,204.93,7.99236466]
[1756611035308,120.61742619,204.99,204.93,0.03236466]
[1756611036014,7.27,204.98,204.93,7.99236466]
[1756611036213,120.61742619,204.99,204.93,0.03236466]
[1756611036719,7.27,204.98,204.93,0.03236466]
[1756611037613,120.61742619,204.99,204.93,0.03236466]
[1756611037919,7.3,204.98,204.93,0.03236466]
[1756611038116,120.61742619,204.99,204.93,0.03236466]
[1756611038519,7.3,204.98,204.93,0.03236466]
[1756611038817,120.61742619,204.99,204.93,0.03236466]
[1756611039020,7.3,204.98,204.93,0.03236466]
[1756611039218,120.61742619,204.99,204.93,0.03236466]
[1756611039713,7.3,204.98,204.93,0.03236466]
[1756611039909,120.61742619,204.99,204.93,0.03236466]
[1756611041123,7.3,204.98,204.93,0.03236466]
[1756611041418,120.61742619,204.99,204.93,0.03236466]
[1756611042011,7.3,204.98,204.93,0.03236466]
[1756611042419,120.61742619,204.99,204.93,7.86236466]
[1756611042715,7.3,204.98,204.93,7.86236466]
[1756611043214,120.61742619,204.99,204.93,7.86236466]
[1756611043616,7.3,204.98,204.93,7.86236466]
[1756611043921,120.61742619,204.99,204.93,7.86236466]
[1756611044118,7.3,204.98,204.93,7.86236466]
[1756611044513,120.61742619,204.99,204.93,7.86236466]
[1756611044710,7.3,204.98,204.93,7.86236466]
[1756611045015,120.61742619,204.99,204.93,7.86236466]
[1756611045610,7.3,204.98,204.93,7.86236466]
[1756611046010,1.35742619,204.97,204.93,7.86236466]
[1756611046414,7.3,204.96,204.93,7.86236466]
[1756611047321,1.35742619,204.97,204.93,7.86236466]
[1756611047521,7.3,204.96,204.93,7.86236466]
[1756611047819,1.35742619,204.97,204.93,7.86236466]
[1756611048024,7.3,204.96,204.93,7.86236466]
[1756611050025,1.35742619,204.97,204.93,7.86236466]
[1756611050221,7.3,204.96,204.93,7.86236466]
[1756611054026,7.3,204.96,204.93,0.03236466]
[1756611054224,7.3,204.96,204.94,7.83]
[1756611077245,7.29,205.01,204.94,7.82]
[1756611077445,7.29,204.99,204.94,7.82]
[1756611077844,7.29,204.99,204.93,1.38979085]
[1756611078044,7.29,204.99,204.94,7.82]
[1756611078241,7.29,204.99,204.95,4.61232148]
[1756611078442,7.29,204.99,204.97,7.82]
[1756611078649,7.29,204.99,204.98,4.61232148]
[1756611083258,7.29,204.99,204.97,7.82]
[1756611084159,8.64742619,204.99,204.97,7.82]
[1756611089265,7.29,204.99,204.97,7.82]
[1756611089465,8.64742619,204.99,204.97,7.82]
[1756611092067,1.35742619,204.99,204.93,0.03236466]
[1756611092264,1.35742619,204.96,204.94,7.82]
[1756611092466,119.06,204.95,204.94,7.82]
[1756611094070,1.35742619,204.98,204.92,0.03502692]
[1756611094265,119.06,204.97,204.93,7.82]
[1756611094465,119.06,204.97,204.92,0.03502692]
[1756611094666,119.06,204.97,204.93,7.82]
[1756611094872,7.3,204.96,204.93,7.82]
[1756611095073,7.3,204.96,204.92,0.03502692]
[1756611095266,7.3,204.96,204.93,7.82]
[1756611095869,7.3,204.96,204.92,0.03502692]
[1756611096263,119.04,204.96,204.93,7.82]
[1756611096670,7.3,204.95,204.93,7.82]
[1756611098274,8.64742619,204.97,204.93,7.23]
[1756611098475,119.04,204.95,204.93,7.23]
[1756611099369,119.04,204.95,204.92,0.03502692]
[1756611099564,119.04,204.95,204.93,7.23]
[1756611099770,119.04,204.95,204.92,0.03502692]
[1756611099965,119.04,204.95,204.93,7.23]
[1756611100176,119.04,204.95,204.92,0.03502692]
[1756611100475,119.04,204.95,204.93,7.23]
[1756611101171,119.04,204.95,204.92,0.03502692]
[1756611101369,119.04,204.95,204.93,7.23]
[1756611101573,126.33,204.95,204.93,7.23]
[1756611103075,7.29,204.95,204.93,7.23]
[1756611103279,7.29,204.95,204.92,0.03502692]
[1756611103280,7.29,204.94,204.92,7.26502692]
[1756611104275,7.29,204.94,204.92,0.03502692]
[1756611104482,18.06,204.95,204.92,0.03502692]
[1756611104677,7.29,204.94,204.92,0.03502692]
[1756611108082,18.06,204.95,204.92,0.03502692]
[1756611108281,7.29,204.94,204.92,0.03502692]
[1756611109277,18.06,204.95,204.92,0.03502692]
[1756611109775,7.29,204.94,204.92,0.03502692]
[1756611109982,18.06,204.95,204.92,0.03502692]
[1756611110881,7.29,204.94,204.92,0.03502692]
[1756611111483,18.06,204.95,204.92,0.03502692]
[1756611111687,7.29,204.94,204.92,0.03502692]
[1756611111984,18.06,204.95,204.92,0.03502692]
[1756611112185,7.29,204.94,204.92,0.03502692]
[1756611112983,7.29,204.96,204.92,0.03502692]
[1756611113180,1.35742619,204.97,204.92,0.03502692]
[1756611113386,7.29,204.98,204.92,0.03502692]
[1756611113682,7.29,204.96,204.92,0.03502692]
[1756611113982,1.35742619,204.97,204.92,0.03502692]
[1756611114383,7.29,204.96,204.92,0.03502692]
[1756611114882,1.35742619,204.97,204.92,0.03502692]
[1756611115583,7.29,204.96,204.92,0.03502692]
[1756611115784,1.35742619,204.97,204.92,0.03502692]
[1756611117084,7.29,204.96,204.92,0.03502692]
[1756611117484,1.35742619,204.97,204.92,0.03502692]
[1756611117784,7.29,204.96,204.92,0.03502692]
[1756611117984,1.35742619,204.97,204.92,0.03502692]
[1756611118683,7.29,204.96,204.92,0.03502692]
[1756611118984,1.35742619,204.97,204.92,0.03502692]
[1756611119184,7.29,204.96,204.92,0.03502692]
[1756611119385,1.35742619,204.97,204.92,7.26502692]
[1756611120081,7.29,204.96,204.92,7.26502692]
[1756611120286,7.29,204.96,204.92,0.03502692]
[1756611120484,7.29,204.99,204.96,7.23]
[1756611120683,7.29,204.99,204.97,8.58742619]
[1756611120984,7.29,204.99,204.97,7.23]
[1756611123892,7.29,205.0,204.95,1.35742619]
[1756611124095,7.29,204.96,204.92,0.03502692]
[1756611124496,1.35742619,204.97,204.91,1.35742619]
[1756611124697,7.29,204.96,204.89,7.23]
[1756611124997,7.29,204.96,204.92,0.03274006]
[1756611126092,8.64742619,204.93,204.92,0.03274006]
[1756611131801,7.29,204.93,204.92,0.03274006]
[1756611132101,8.64742619,204.93,204.92,0.03274006]
[1756611140819,7.29,204.93,204.92,0.03274006]
[1756611141019,8.64742619,204.93,204.92,0.03274006]
[1756611142321,7.29,205.0,204.92,0.03274006]
[1756611142515,8.64742619,204.96,204.93,7.53]
[1756611143416,7.29,204.99,204.93,8.88742619]
[1756611145119,333.34597793,205.07,204.96,7.53]
[1756611145120,8.64742619,205.03,204.96,7.53]
[1756611145516,333.34597793,205.07,204.98,7.53]
[1756611145517,7.29,205.06,204.98,7.53]
[1756611145823,8.64742619,205.06,204.98,7.53]
[1756611146221,7.29,205.06,204.99,1.35742619]
[1756611146421,8.64742619,205.06,205.0,7.53]
[1756611147523,7.29,205.06,205.0,7.53]
[1756611147828,8.64742619,205.1,205.04,7.53]
[1756611148517,1.35742619,205.06,205.05,0.03411227]
[1756611148712,8.64742619,205.06,205.05,0.03411227]
[1756611148916,8.64742619,205.06,205.0,7.53]
[1756611149321,7.29,205.06,204.97,7.53]
[1756611149823,7.29,205.07,205.01,0.03658796]
[1756611151919,7.29,205.04,205.01,0.03658796]
[1756611153324,2.12002774,205.05,205.01,0.03658796]
[1756611154321,7.29,205.04,205.01,0.03658796]
[1756611154521,2.12002774,205.05,205.01,0.03658796]
[1756611154928,7.29,205.04,205.01,0.03658796]
[1756611155423,2.12002774,205.05,205.01,0.03658796]
[1756611156924,7.29,205.04,205.01,0.03658796]
[1756611157527,7.28,205.04,205.01,0.03658796]
[1756611157925,2.12002774,205.05,205.01,0.03658796]
[1756611158427,7.28,205.1,205.01,0.03658796]
[1756611158623,7.28,205.07,205.01,0.03658796]
[1756611166532,115.38002774,205.08,205.01,0.03658796]
[1756611166533,7.28,205.04,205.01,0.03658796]
[1756611171437,8.63729591,205.02,205.01,0.03658796]
[1756611176838,8.63729591,205.02,204.93,7.72]
[1756611177038,7.28,204.97,204.93,7.72]
[1756611177737,7.28,204.97,204.89,7.72]
[1756611178139,0.03683067,204.95,204.89,7.72]
[1756611180543,0.03683067,204.95,204.91,2.1216188]
[1756611180840,0.03683067,204.95,204.92,7.72]
[1756611181738,0.03683067,204.95,204.88,7.72]
[1756611182239,0.03683067,204.95,204.91,7.72]
[1756611182637,2.1216188,205.0,204.91,7.72]
[1756611183047,0.03273716,204.95,204.91,7.72]
[1756611183634,0.03273716,204.95,204.93,2.1216188]
[1756611183840,0.03273716,204.95,204.94,7.72]
[1756611185644,0.03273716,204.95,204.94,8.2]
[1756611186045,7.28,205.04,204.94,8.2]
[1756611186346,7.28,205.04,204.94,7.72]
[1756611187940,7.28,205.04,204.98,7.34]
[1756611192446,7.28,205.04,204.97,0.03113251]
[1756611194654,43.28,205.04,204.97,0.03113251]
[1756611201260,7.32,205.01,204.97,0.03113251]
[1756611201460,2.1216188,205.02,204.97,0.03113251]
[1756611201461,7.32,204.98,204.97,0.03113251]
[1756611210362,7.32,204.99,204.97,0.03113251]
[1756611211766,118.84,205.0,204.97,0.03113251]
[1756611211961,7.32,204.99,204.97,0.03113251]
[1756611212366,118.84,205.0,204.97,0.03113251]
[1756611212567,7.32,204.99,204.97,0.03113251]
[1756611213070,126.16,204.99,204.97,0.03113251]
[1756611213272,7.32,204.98,204.97,0.03113251]
[1756611216875,126.16,204.98,204.97,0.03113251]
[1756611224382,7.32,204.98,204.97,0.03113251]
[1756611224686,126.16,204.98,204.97,0.03113251]
[1756611225883,7.32,204.98,204.97,0.03113251]
[1756611226181,28.42,205.0,204.98,7.52]
[1756611226388,118.84,205.03,204.99,1.35766769]
[1756611226686,118.84,205.04,205.03,7.52]
[1756611227789,118.84,205.04,205.01,0.03266775]
[1756611227988,118.84,205.04,205.01,7.55266775]
[1756611228789,118.84,205.04,205.01,0.03266775]
[1756611229090,7.32,205.03,205.01,0.03266775]
[1756611229290,118.84,205.04,205.01,0.03266775]
[1756611229588,7.32,205.03,205.01,0.03266775]
[1756611229987,118.84,205.04,205.01,0.03266775]
[1756611230286,7.32,205.03,205.01,0.03266775]
[1756611230482,118.84,205.04,205.01,0.03266775]
[1756611231391,7.32,205.03,205.01,0.03266775]
[1756611232287,118.82,205.03,205.02,7.52]
[1756611233079,7.32,205.02,205.01,0.03266775]
[1756611243096,29.56,205.02,205.01,0.03266775]
[1756611248000,30.04,205.02,204.89,7.22]
[1756611248203,7.28,204.97,204.89,7.22]
[1756611248407,40.92,204.96,204.89,7.22]
[1756611248701,7.28,204.95,204.89,7.22]
[1756611249409,7.28,204.95,204.85,7.22]
[1756611249410,0.03191469,204.94,204.85,7.22]
[1756611249607,0.03191469,204.94,204.88,7.22]
[1756611267423,7.29,204.93,204.83,7.22]
[1756611270227,2.11964262,204.92,204.83,7.22]
[1756611270422,7.29,204.91,204.83,7.22]
[1756611271128,7.29,204.88,204.83,7.22]
[1756611271325,9.86,204.88,204.83,7.22]
[1756611271524,7.29,204.87,204.83,7.22]
[1756611271725,7.29,204.87,204.79,7.22]
[1756611272528,0.0311271,204.85,204.79,7.22]
[1756611274325,7.29,204.94,204.84,7.22]
[1756611275028,7.32,205.01,204.9,7.22]
[1756611275225,7.32,205.01,204.93,7.22]
[1756611275627,7.32,205.01,204.95,0.03232026]
[1756611277734,126.58,205.01,204.95,0.03232026]
[1756611278025,7.32,205.01,204.95,0.03232026]
[1756611278225,126.56,205.01,204.95,0.03232026]
[1756611279023,7.32,205.01,204.95,0.03232026]
[1756611279228,126.56,205.01,204.95,0.03232026]
[1756611279527,7.32,205.01,204.95,0.03232026]
[1756611279727,126.54,205.01,204.95,0.03232026]
[1756611280025,7.32,205.01,204.95,0.03232026]
[1756611280231,7.31,204.99,204.95,7.35232026]
[1756611280532,7.31,204.99,204.96,7.32]
[1756611287625,119.18,205.0,204.96,7.32]
[1756611288031,7.31,204.99,204.96,7.32]
[1756611289636,337.32964262,205.03,204.96,7.32]
[1756611289849,119.04,205.02,204.96,7.32]
[1756611296045,7.31,205.03,204.96,7.32]
[1756611296343,126.31,205.01,204.95,7.35232026]
[1756611297639,328.7490497,205.11,204.97,7.32]
[1756611297640,7.31,205.05,204.97,7.32]
[1756611297937,118.96,205.04,204.97,7.32]
[1756611298135,7.31,205.1,204.97,7.32]
[1756611298346,7.31,205.1,205.0,7.32]
[1756611298551,119.06,205.09,205.0,7.32]
[1756611298843,119.06,205.09,205.03,7.32]
[1756611299039,7.31,205.1,205.03,7.32]
[1756611299243,119.08,205.09,205.03,7.32]
[1756611299440,126.39,205.09,205.05,7.32]
[1756611300743,7.31,205.08,205.05,7.32]
[1756611301139,119.08,205.09,205.05,7.32]
[1756611301343,119.08,205.09,205.04,0.03096693]
[1756611301344,7.31,205.08,205.04,0.03096693]
[1756611301541,119.08,205.09,205.04,0.03096693]
[1756611301748,7.31,205.08,205.04,0.03096693]
[1756611301948,119.08,205.09,205.04,0.03096693]
[1756611302346,7.31,205.08,205.04,0.03096693]
[1756611302546,9.42964262,205.08,205.04,0.03096693]
[1756611304348,2.11964262,205.08,205.04,0.03096693]
[1756611304649,7.31,205.07,205.04,0.03096693]
[1756611305150,7.31,205.05,205.04,0.03096693]
[1756611305551,7.31,205.1,205.04,7.35096693]
[1756611305751,126.41,205.1,205.04,7.35096693]
[1756611309343,126.41,205.1,205.04,0.03096693]
[1756611310249,7.33,205.08,205.04,0.03096693]
[1756611312952,2.11964262,205.06,205.04,0.03096693]
[1756611313153,126.45,205.05,205.04,0.03096693]
[1756611321762,126.93,205.05,205.04,0.03096693]
[1756611323163,7.33,205.05,205.04,0.03096693]
[1756611323457,119.02,205.05,205.04,0.03096693]
[1756611323661,126.33,205.05,205.04,0.03096693]
[1756611324167,126.33,205.05,205.04,4.59775363]
[1756611327569,126.33,205.05,205.04,0.03096693]
[1756611327768,126.33,205.05,205.04,4.59913499]
[1756611328569,126.33,205.05,205.04,4.5992014]
[1756611330973,126.33,205.05,205.04,0.03096693]
[1756611340376,7.31,205.05,205.04,0.03096693]
[1756611340673,327.9,205.11,205.05,7.47]
[1756611340674,7.25,205.08,205.05,7.47]
[1756611340865,118.92,205.07,205.05,7.47]
[1756611342171,330.01964262,205.11,205.05,7.47]
[1756611342372,118.94,205.1,205.05,7.47]
[1756611342671,118.94,205.1,205.04,0.03096693]
[1756611342872,118.94,205.1,205.05,7.47]
[1756611343274,118.94,205.1,205.04,0.03096693]
[1756611343777,118.94,205.1,205.05,7.47]
[1756611344477,118.94,205.1,205.04,0.03096693]
[1756611344878,118.94,205.1,205.05,7.47]
[1756611345074,118.94,205.1,205.04,0.03096693]
[1756611345274,118.94,205.1,205.05,7.47]
[1756611345474,118.94,205.1,205.04,0.03096693]
[1756611345675,7.25,205.11,205.05,7.47]
[1756611345978,30.04,205.1,205.04,0.03096693]
[1756611346379,30.04,205.1,205.05,7.47]
[1756611346579,30.04,205.1,205.04,0.03096693]
[1756611347072,30.04,205.1,205.04,7.50096693]
[1756611348477,7.25,205.09,205.04,0.03096693]
[1756611348674,30.04,205.1,205.04,0.03096693]
[1756611348875,37.29,205.1,205.04,0.03096693]
[1756611355277,37.29,205.1,205.04,7.50096693]
[1756611367386,37.29,205.1,205.06,7.76]
[1756611367689,7.25,205.1,205.06,7.76]
[1756611368093,7.21,205.14,205.06,7.76]
[1756611368392,7.21,205.14,205.08,9.87964262]
[1756611369289,7.21,205.14,205.09,7.76]
[1756611369492,7.21,205.19,205.09,7.79104479]
[1756611370695,2.11964262,205.18,205.09,7.79104479]
[1756611371194,7.21,205.17,205.09,7.79104479]
[1756611376398,22.06,205.2,205.09,0.03104479]
[1756611376399,7.21,205.14,205.09,0.03104479]
[1756611376694,7.21,205.11,205.09,0.03104479]
[1756611381008,2.11964262,205.12,205.09,0.03104479]
[1756611381198,7.21,205.11,205.09,0.03104479]
[1756611381906,2.11964262,205.12,205.09,0.03104479]
[1756611382610,7.21,205.11,205.09,0.03104479]
[1756611382805,2.11964262,205.12,205.09,0.03104479]
[1756611383202,7.21,205.12,205.09,7.79104479]
[1756611384105,7.21,205.12,205.1,7.76]
[1756611384311,9.32964262,205.14,205.1,7.76]
[1756611384907,7.21,205.13,205.1,7.76]
[1756611385709,2.11964262,205.14,205.1,7.76]
[1756611385907,7.21,205.13,205.09,7.79104479]
[1756611386109,2.11964262,205.14,205.09,7.79104479]
[1756611386410,7.21,205.13,205.09,7.79104479]
[1756611388114,7.21,205.13,205.09,0.03104479]
[1756611388413,7.21,205.13,205.09,7.79104479]
[1756611389516,7.21,205.13,205.1,7.76]
[1756611389818,2.11964262,205.15,205.09,0.03104479]
[1756611390011,57.29,205.17,205.1,7.76]
[1756611391316,7.21,205.17,205.1,7.76]
[1756611409329,7.21,205.17,205.09,0.03104479]
[1756611409330,7.21,205.17,205.12,7.52]
[1756611409529,8.6649743,205.18,205.12,7.52]
[1756611412728,7.31,205.22,205.13,1.3549743]
[1756611413033,1.3549743,205.21,205.14,7.52]
[1756611413228,7.31,205.2,205.14,7.52]
[1756611413424,7.31,205.2,205.15,0.03216849]
[1756611413629,8.6649743,205.21,205.15,7.55216849]
[1756611413831,7.31,205.21,205.15,8.90714279]
[1756611415426,7.31,205.21,205.15,7.55216849]
[1756611422142,7.34172412,205.2,205.15,0.03216849]
[1756611422540,7.34172412,205.2,205.16,7.52]
[1756611422741,0.03172412,205.2,205.16,7.52]
[1756611423041,7.34172412,205.2,205.16,7.52]
[1756611423242,0.03172412,205.2,205.16,7.52]
[1756611423438,7.31,205.19,205.16,7.52]
[1756611424337,7.31,205.19,205.15,0.03216849]
[1756611425141,0.03172412,205.2,205.15,0.03216849]
[1756611425533,7.31,205.19,205.15,0.03216849]
[1756611425735,0.03172412,205.2,205.15,0.03216849]
[1756611426941,7.31,205.19,205.15,0.03216849]
[1756611427547,7.3,205.19,205.15,0.03216849]
[1756611427941,0.03172412,205.2,205.15,0.03216849]
[1756611428337,7.3,205.19,205.15,0.03216849]
[1756611428542,7.3,205.19,205.15,7.56216849]
[1756611429444,7.3,205.19,205.15,0.03216849]
[1756611430046,0.03172412,205.2,205.15,0.03216849]
[1756611430647,7.3,205.19,205.15,0.03216849]
[1756611431654,0.03172412,205.2,205.15,0.03216849]
[1756611431849,7.3,205.19,205.15,0.03216849]
[1756611432045,0.03172412,205.2,205.15,0.03216849]
[1756611432449,7.3,205.19,205.15,0.03216849]
[1756611432655,0.03172412,205.2,205.15,0.03216849]
[1756611433055,7.3,205.19,205.15,0.03216849]
[1756611433953,0.03172412,205.2,205.16,7.53]
[1756611434255,0.03172412,205.2,205.17,4.48578307]
[1756611434545,0.03172412,205.2,205.18,4.48578307]
[1756611434750,0.03172412,205.2,205.19,12.01578307]
[1756611439457,0.03172412,205.2,205.19,13.36979721]
[1756611440061,0.03172412,205.2,205.19,13.84979721]
[1756611440659,7.3,205.29,205.19,6.31979721]
[1756611440859,7.34,205.33,205.24,7.53]
[1756611441055,1.35401414,205.31,205.25,4.48578307]
[1756611441360,7.34,205.31,205.26,4.48578307]
[1756611441561,7.34,205.31,205.27,12.01578307]
[1756611441858,7.34,205.29,205.28,4.48578307]
[1756611442561,7.34,205.32,205.28,4.48578307]
[1756611442757,2.11466933,205.33,205.27,0.03218971]
[1756611442758,2.11466933,205.33,205.29,4.48578307]
[1756611442953,2.11466933,205.33,205.3,4.48578307]
[1756611443260,7.34,205.32,205.31,4.48578307]
[1756611443462,7.34,205.32,205.31,4.58246725]
[1756611449060,7.34,205.32,205.27,0.03218971]
[1756611449266,2.11466933,205.33,205.28,12.00942773]
[1756611449565,7.34,205.32,205.29,4.47942773]
[1756611449765,7.34,205.32,205.3,4.47942773]
[1756611449955,7.34,205.32,205.28,7.53]
[1756611450157,2.11466933,205.33,205.29,4.47942773]
[1756611450468,7.34,205.32,205.3,4.47942773]
[1756611450666,327.66,205.34,205.28,7.53]
[1756611450863,7.34,205.33,205.29,4.47923678]
[1756611451068,7.34,205.33,205.3,4.47923678]
[1756611451269,329.77466933,205.34,205.28,7.53]
[1756611451565,7.34,205.33,205.29,4.47877489]
[1756611451769,329.77466933,205.34,205.3,4.47877489]
[1756611452066,329.77466933,205.34,205.31,4.47794111]
[1756611452262,7.34,205.32,205.27,0.03218971]
[1756611452568,118.8,205.33,205.28,4.47756598]
[1756611452767,118.8,205.33,205.29,4.47756598]
[1756611452968,118.8,205.33,205.3,4.47756598]
[1756611453170,118.8,205.33,205.27,0.03218971]
[1756611453365,7.34,205.32,205.29,7.53]
[1756611453565,7.34,205.32,205.3,4.47687076]
[1756611453763,7.34,205.32,205.31,4.47687076]
[1756611454064,7.34,205.32,205.31,4.47664124]
[1756611454475,126.14,205.33,205.31,4.47664124]
[1756611454769,126.14,205.33,205.27,7.56218971]
[1756611454965,7.34,205.32,205.29,7.53]
[1756611455164,7.34,205.32,205.3,4.47599882]
[1756611455371,7.34,205.32,205.31,4.47599882]
[1756611459871,118.8,205.33,205.31,12.30599882]
[1756611460072,126.04,205.33,205.31,7.83]
[1756611460268,9.35466933,205.38,205.28,7.83]
[1756611460469,118.7,205.37,205.3,7.83]
[1756611460670,118.7,205.37,205.32,7.83]
[1756611460967,125.94,205.37,205.33,8.98205828]
[1756611461170,125.94,205.37,205.31,0.03498577]
[1756611461171,125.94,205.37,205.35,7.83]
[1756611461367,125.94,205.37,205.32,7.83]
[1756611461675,125.94,205.37,205.34,7.83]
[1756611461878,125.94,205.37,205.35,8.99115445]
[1756611462066,125.94,205.37,205.36,8.99115445]
[1756611462766,125.94,205.37,205.36,4.48609286]
[1756611463967,125.94,205.37,205.33,7.83]
[1756611464174,7.24,205.36,205.34,4.48282619]
[1756611464373,7.24,205.36,205.35,4.48282619]
[1756611464774,7.24,205.36,205.35,4.48950655]
[1756611465167,118.7,205.37,205.35,4.48950655]
[1756611465372,118.7,205.37,205.36,12.31822992]
[1756611465774,7.24,205.4,205.36,12.31822992]
[1756611465971,7.24,205.39,205.37,4.48767013]
[1756611466172,7.24,205.39,205.34,7.83]
[1756611466477,118.72,205.4,205.36,0.03401709]
[1756611466677,118.72,205.4,205.38,7.83]
[1756611469177,118.72,205.4,205.37,0.03346345]
[1756611469178,7.24,205.39,205.37,0.03346345]
[1756611469578,7.24,205.39,205.37,7.86346345]
[1756611469979,7.24,205.41,205.37,7.86346345]
[1756611470377,7.24,205.41,205.38,7.83]
[1756611470880,118.72,205.42,205.38,7.83]
[1756611471274,125.96,205.42,205.37,0.03346345]
[1756611471480,118.72,205.42,205.37,0.03346345]
[1756611471681,118.72,205.42,205.38,7.83]
[1756611471980,126.0,205.45,205.38,7.83]
[1756611476085,128.11232676,205.45,205.37,0.03346345]
[1756611477684,128.11232676,205.45,205.37,7.86346345]
[1756611480386,2.11232676,205.42,205.37,0.03346345]
[1756611480577,7.24,205.4,205.37,7.86346345]
[1756611485286,118.72,205.41,205.37,0.03346345]
[1756611485492,118.72,205.41,205.38,7.83]
[1756611485883,125.96,205.41,205.38,7.83]
[1756611486386,118.72,205.41,205.38,7.83]
[1756611486791,126.04,205.45,205.38,7.83]
[1756611487191,7.24,205.45,205.38,7.83]
[1756611490597,5.46597793,205.51,205.38,7.83]
[1756611490598,7.32,205.48,205.38,9.94232676]
[1756611490797,7.32,205.48,205.39,7.92]
[1756611491496,7.32,205.48,205.41,7.95509888]
[1756611496997,9.43232676,205.51,205.42,7.92]
[1756611497198,7.32,205.51,205.42,7.92]
[1756611497398,17.98,205.53,205.47,7.92]
[1756611497399,1.35048747,205.53,205.47,7.92]
[1756611498102,7.32,205.54,205.48,0.03423337]
[1756611498300,7.32,205.52,205.49,7.92]
[1756611498901,1.35048747,205.53,205.48,7.95423337]
[1756611499199,8.67048747,205.52,205.48,7.95423337]
[1756611499400,7.32,205.52,205.48,7.95423337]
[1756611499800,7.32,205.52,205.49,7.92]
[1756611502104,7.32,205.55,205.48,0.03423337]
[1756611502402,2.11012804,205.53,205.48,0.03423337]
[1756611502802,7.32,205.52,205.48,0.03423337]
[1756611503707,2.11012804,205.53,205.48,0.03423337]
[1756611504098,7.32,205.52,205.48,0.03423337]
[1756611504304,2.11012804,205.53,205.48,0.03423337]
[1756611504805,7.32,205.52,205.48,0.03423337]
[1756611505007,2.11012804,205.53,205.48,0.03423337]
[1756611505202,7.32,205.52,205.48,0.03423337]
[1756611506106,2.11012804,205.53,205.48,0.03423337]
[1756611506403,7.32,205.52,205.48,0.03423337]
[1756611506806,36.18,205.56,205.31,5.48361125]
[1756611506807,7.32,205.49,205.31,5.48361125]
[1756611507001,36.18,205.56,205.36,7.92]
[1756611507002,7.29,205.46,205.36,7.92]
[1756611521316,7.29,205.46,205.37,7.31]
[1756611523414,5.46597793,205.53,205.39,2.11012804]
[1756611523615,9.39012804,205.52,205.4,7.31]
[1756611524114,7.28,205.52,205.43,7.31]
[1756611530826,7.28,205.57,205.46,7.31]